fUST/lending_fUST_20240721
["ID","MTS","AMOUNT","RATE_DAILY","PERIOD"]
[332773104,1721512243822,-500.0,0.00013698,2]
[332773105,1721512243833,-500.0,0.00013698,2]
[332773106,1721512243843,-587.18,0.00013698,2]
[332773107,1721512243852,-2012.19,0.00013698,2]
[332773108,1721512243863,-2328.09,0.00013698,2]
[332773109,1721512243874,-500.0,0.00013698,2]
[332773110,1721512243883,-500.0,0.00013698,2]
[332773111,1721512243894,-500.0,0.00013698,2]
[332773112,1721512243905,-500.08985855,0.00013698,2]
[332773113,1721512243917,-500.0,0.00013698,2]
[332773114,1721512243928,-500.0,0.00013698,2]
[332773115,1721512243938,-500.0,0.00013698,2]
[332773116,1721512243947,-500.0,0.00013698,2]
[332773117,1721512243957,-500.0,0.00013698,2]
[332773118,1721512243966,-500.0,0.00013698,2]
[332773119,1721512243975,-500.0,0.00013698,2]
[332773120,1721512244132,-500.0,0.00013698,2]
[332773121,1721512244153,-500.0,0.00013698,2]
[332773122,1721512244163,-500.0,0.00013698,2]
[332773123,1721512244172,-500.0,0.00013698,2]
[332773124,1721512244181,-500.0,0.00013698,2]
[332773125,1721512244191,-970.93,0.00013698,2]
[332773126,1721512244201,-500.0,0.00013698,2]
[332773127,1721512244211,-505.7857432,0.00013698,2]
[332773128,1721512244221,-500.0,0.00013698,2]
[332773129,1721512244230,-1648.23,0.00013698,2]
[332773130,1721512244240,-501.3438523,0.00013698,2]
[332773131,1721512244250,-501.29419541,0.00013698,2]
[332773132,1721512244259,-500.0,0.00013698,2]
[332773133,1721512244269,-500.0,0.00013698,2]
[332773134,1721512244278,-500.0,0.00013698,2]
[332773135,1721512244288,-500.0,0.00013698,2]
[332773136,1721512244298,-500.0,0.00013698,2]
[332773137,1721512244308,-500.0,0.00013698,2]
[332773138,1721512244318,-500.0,0.00013698,2]
[332773139,1721512244331,-500.0,0.00013698,2]
[332773140,1721512244340,-1064.82,0.00013698,2]
[332773141,1721512244349,-500.0,0.00013698,2]
[332773142,1721512244359,-500.0,0.00013698,2]
[332773143,1721512244370,-500.0,0.00013698,2]
[332773144,1721512244380,-872.61,0.00013698,2]
[332773145,1721512244390,-4825.35,0.00013698,2]
[332773146,1721512244403,-1374.85,0.00013698,2]
[332773147,1721512244413,-500.0,0.00013698,2]
[332773148,1721512244423,-810.53,0.00013698,2]
[332773149,1721512244433,-500.0,0.00013698,2]
[332773150,1721512244444,-540.77,0.00013698,2]
[332773151,1721512244453,-551.83,0.00013698,2]
[332773152,1721512244464,-500.0,0.00013698,2]
[332773153,1721512244474,-500.0,0.00013698,2]
[332773154,1721512244483,-500.0,0.00013698,2]
[332773155,1721512244493,-500.0,0.00013698,2]
[332773156,1721512244503,-500.0,0.00013698,2]
[332773157,1721512244513,-500.0,0.00013698,2]
[332773158,1721512244523,-500.0,0.00013698,2]
[332773159,1721512244532,-500.0,0.00013698,2]
[332773160,1721512244543,-500.0,0.00013698,2]
[332773161,1721512244554,-607.8,0.00013698,2]
[332773162,1721512244565,-500.0,0.00013698,2]
[332773163,1721512244576,-500.81614324,0.00013698,2]
[332773164,1721512244586,-500.0,0.00013698,2]
[332773165,1721512244596,-500.0,0.00013698,2]
[332773166,1721512244607,-1046.18,0.00013698,2]
[332773167,1721512244618,-500.0,0.00013698,2]
[332773168,1721512244631,-500.0,0.00013698,2]
[332773169,1721512244640,-500.0,0.00013698,2]
[332773170,1721512244650,-500.0,0.00013698,2]
[332773171,1721512244660,-500.0,0.00013698,2]
[332773172,1721512244671,-8367.53,0.00013698,2]
[332773173,1721512244681,-500.0,0.00013698,2]
[332773174,1721512244691,-500.0,0.00013698,2]
[332773175,1721512244702,-500.0,0.00013698,2]
[332773176,1721512244713,-500.0,0.00013698,2]
[332773177,1721512244724,-219.09698425,0.00013698,2]
[332773178,1721512244735,-500.0,0.00013698,2]
[332773179,1721512244745,-6662.52,0.00013698,2]
[332773180,1721512244754,-500.0,0.00013698,2]
[332773181,1721512244765,-571.85,0.00013698,2]
[332773182,1721512244774,-500.0,0.00013698,2]
[332773183,1721512244784,-500.0,0.00013698,2]
[332773184,1721512244793,-500.0,0.00013698,2]
[332773185,1721512244803,-500.0,0.00013698,2]
[332773186,1721512244814,-646.05085239,0.00013698,2]
[332773187,1721512244823,-1959.59,0.00013698,2]
[332773188,1721512244833,-558.84,0.00013698,2]
[332773189,1721512244843,-558.84,0.00013698,2]
[332773190,1721512244853,-558.84,0.00013698,2]
[332773191,1721512244863,-558.84,0.00013698,2]
[332773192,1721512244874,-558.84,0.00013698,2]
[332773193,1721512244884,-500.0,0.00013698,2]
[332773194,1721512244893,-558.84,0.00013698,2]
[332773195,1721512244903,-558.84,0.00013698,2]
[332773196,1721512244912,-558.84,0.00013698,2]
[332773197,1721512244922,-500.0,0.00013698,2]
[332773198,1721512244932,-500.0,0.00013698,2]
[332773199,1721512244941,-558.84,0.00013698,2]
[332773200,1721512244951,-1102.58,0.00013698,2]
[332773201,1721512244961,-558.84,0.00013698,2]
[332773202,1721512244971,-558.84,0.00013698,2]
[332773203,1721512244981,-558.84,0.00013698,2]
[332773204,1721512244992,-2579.67,0.00013698,2]
[332773205,1721512245002,-558.84,0.00013698,2]
[332773206,1721512245011,-558.84,0.00013698,2]
[332773207,1721512245021,-500.0,0.00013698,2]
[332773208,1721512245030,-500.0,0.00013698,2]
[332773209,1721512245041,-500.0,0.00013698,2]
[332773210,1721512245050,-500.0,0.00013698,2]
[332773211,1721512245060,-550.5,0.00013698,2]
[332773212,1721512245069,-574.66,0.00013698,2]
[332773213,1721512245079,-500.0,0.00013698,2]
[332773214,1721512245088,-500.0,0.00013698,2]
[332773215,1721512245098,-500.0,0.00013698,2]
[332773216,1721512245108,-500.0,0.00013698,2]
[332773217,1721512245117,-2810.71,0.00013698,2]
[332773218,1721512245127,-500.0,0.00013698,2]
[332773219,1721512245136,-995.06,0.00013698,2]
[332773220,1721512245146,-500.0,0.00013698,2]
[332773221,1721512245155,-500.0,0.00013698,2]
[332773222,1721512245165,-641.78,0.00013698,2]
[332773223,1721512245175,-500.0,0.00013698,2]
[332773224,1721512245185,-16419.34,0.00013698,2]
[332773225,1721512245195,-500.0,0.00013698,2]
[332773226,1721512245205,-500.0,0.00013698,2]
[332773227,1721512245215,-1196.93,0.00013698,2]
[332773228,1721512245224,-500.0,0.00013698,2]
[332773229,1721512245234,-500.0,0.00013698,2]
[332773230,1721512245244,-4244.03,0.00013698,2]
[332773232,1721512245254,-500.0,0.00013698,2]
[332773233,1721512245263,-3527.45,0.00013698,2]
[332773234,1721512245273,-500.0,0.00013698,2]
[332773235,1721512245282,-500.0,0.00013698,2]
[332773236,1721512245292,-505.79508747,0.00013698,2]
[332773237,1721512245302,-1306.26,0.00013698,2]
[332773238,1721512245314,-500.0,0.00013698,2]
[332773239,1721512245330,-505.46201646,0.00013698,2]
[332773240,1721512245340,-1137.19,0.00013698,2]
[332773241,1721512245349,-983.71,0.00013698,2]
[332773242,1721512245359,-193.47418578,0.00013698,2]
[332773243,1721512245371,-508.40747236,0.00013698,2]
[332773245,1721512245380,-500.0,0.00013698,2]
[332773247,1721512245389,-829.31,0.00013698,2]
[332773249,1721512245400,-535.13087164,0.00013698,2]
[332773251,1721512245411,-500.0,0.00013698,2]
[332773253,1721512245420,-1739.54,0.00013698,2]
[332773254,1721512245430,-500.0,0.00013698,2]
[332773255,1721512245440,-500.0,0.00013698,2]
[332773256,1721512245449,-500.0,0.00013698,2]
[332773257,1721512245459,-500.0,0.00013698,2]
[332773258,1721512245469,-500.0,0.00013698,2]
[332773259,1721512245480,-500.0,0.00013698,2]
[332773262,1721512245489,-500.0,0.00013698,2]
[332773264,1721512245499,-500.0,0.00013698,2]
[332773266,1721512245509,-512.07655604,0.00013698,2]
[332773267,1721512245519,-500.0,0.00013698,2]
[332773268,1721512245528,-500.0,0.00013698,2]
[332773269,1721512245538,-500.0,0.00013698,2]
[332773270,1721512245547,-2679.42,0.00013698,2]
[332773271,1721512245559,-509.82043443,0.00013698,2]
[332773272,1721512245569,-500.0,0.00013698,2]
[332773273,1721512245579,-1256.37,0.00013698,2]
[332773274,1721512245589,-500.0,0.00013698,2]
[332773275,1721512245599,-500.0,0.00013698,2]
[332773276,1721512245608,-276.89937302,0.00013698,2]
[332773277,1721512245618,-1810.99,0.00013698,2]
[332773278,1721512245628,-500.0,0.00013698,2]
[332773279,1721512245638,-601.4404759,0.00013698,2]
[332773280,1721512245649,-500.0,0.00013698,2]
[332773283,1721512245660,-716.17,0.00013698,2]
[332773285,1721512245670,-2402.51,0.00013698,2]
[332773287,1721512245680,-687.59,0.00013698,2]
[332773289,1721512245690,-2521.54,0.00013698,2]
[332773291,1721512245700,-500.0,0.00013698,2]
[332773292,1721512245710,-500.0,0.00013698,2]
[332773294,1721512245720,-500.0,0.00013698,2]
[332773296,1721512245731,-4600.07,0.00013698,2]
[332773298,1721512245740,-500.0,0.00013698,2]
[332773300,1721512245750,-500.0,0.00013698,2]
[332773301,1721512245759,-500.0,0.00013698,2]
[332773303,1721512245769,-150.0,0.00013698,2]
[332773305,1721512245779,-2896.89,0.00013698,2]
[332773307,1721512245789,-1896.75,0.00013698,2]
[332773308,1721512245799,-500.0,0.00013698,2]
[332773309,1721512245810,-191.2377236,0.00013698,2]
[332773310,1721512245822,-500.0,0.00013698,2]
[332773311,1721512245832,-500.0,0.00013698,2]
[332773312,1721512245844,-500.0,0.00013698,2]
[332773314,1721512245855,-500.0,0.00013698,2]
[332773316,1721512245864,-500.0,0.00013698,2]
[332773318,1721512245874,-2904.58,0.00013698,2]
[332773320,1721512245886,-500.0,0.00013698,2]
[332773322,1721512245896,-2906.83,0.00013698,2]
[332773324,1721512245907,-10248.99,0.00013698,2]
[332773326,1721512245917,-1227.14,0.00013698,2]
[332773327,1721512245927,-2229.03,0.00013698,2]
[332773328,1721512245937,-500.0,0.00013698,2]
[332773329,1721512245947,-211.01050047,0.00013698,2]
[332773330,1721512245956,-1013.9,0.00013698,2]
[332773331,1721512245966,-2472.96,0.00013698,2]
[332773332,1721512245977,-500.0,0.00013698,2]
[332773333,1721512245989,-500.0,0.00013698,2]
[332773334,1721512245999,-500.0,0.00013698,2]
[332773335,1721512246009,-500.0,0.00013698,2]
[332773336,1721512246019,-8495.04,0.00013698,2]
[332773337,1721512246028,-500.0,0.00013698,2]
[332773338,1721512246038,-500.0,0.00013698,2]
[332773339,1721512246048,-850.96,0.00013698,2]
[332773340,1721512246058,-500.0,0.00013698,2]
[332773341,1721512246067,-500.0,0.00013698,2]
[332773342,1721512246077,-12539.83,0.00013698,2]
[332773343,1721512246088,-258.57234386,0.00013698,2]
[332773345,1721512246097,-500.0,0.00013698,2]
[332773347,1721512246107,-500.0,0.00013698,2]
[332773349,1721512246117,-261.30972445,0.00013698,2]
[332773350,1721512246128,-500.0,0.00013698,2]
[332773352,1721512246138,-500.0,0.00013698,2]
[332773354,1721512246147,-1471.9,0.00013698,2]
[332773356,1721512246157,-504.74873459,0.00013698,2]
[332773358,1721512246166,-3384.03,0.00013698,2]
[332773359,1721512246176,-1061.7,0.00013698,2]
[332773361,1721512246186,-3384.03,0.00013698,2]
[332773363,1721512246196,-3384.03,0.00013698,2]
[332773365,1721512246206,-3384.03,0.00013698,2]
[332773368,1721512246216,-1971.06,0.00013698,2]
[332773371,1721512246225,-3384.03,0.00013698,2]
[332773372,1721512246235,-500.0,0.00013698,2]
[332773374,1721512246246,-3384.03,0.00013698,2]
[332773376,1721512246256,-500.0,0.00013698,2]
[332773378,1721512246267,-3384.03,0.00013698,2]
[332773380,1721512246276,-3384.03,0.00013698,2]
[332773382,1721512246286,-3384.03,0.00013698,2]
[332773384,1721512246297,-3384.03,0.00013698,2]
[332773386,1721512246307,-3384.03,0.00013698,2]
[332773387,1721512246317,-500.0,0.00013698,2]
[332773388,1721512246332,-500.0,0.00013698,2]
[332773390,1721512246343,-1040.79,0.00013698,2]
[332773391,1721512246353,-2106.78,0.00013698,2]
[332773392,1721512246364,-482.34424015,0.00013698,2]
[332773393,1721512246373,-3384.03,0.00013698,2]
[332773394,1721512246383,-3384.03,0.00013698,2]
[332773395,1721512246394,-800.21,0.00013698,2]
[332773396,1721512246406,-3384.03,0.00013698,2]
[332773397,1721512246418,-3384.03,0.00013698,2]
[332773398,1721512246427,-3384.03,0.00013698,2]
[332773399,1721512246437,-3384.03,0.00013698,2]
[332773400,1721512246447,-694.07,0.00013698,2]
[332773401,1721512246457,-3384.03,0.00013698,2]
[332773402,1721512246467,-3384.03,0.00013698,2]
[332773403,1721512246476,-3384.03,0.00013698,2]
[332773404,1721512246486,-3384.03,0.00013698,2]
[332773405,1721512246496,-3384.03,0.00013698,2]
[332773406,1721512246505,-3384.03,0.00013698,2]
[332773407,1721512246516,-559.68,0.00013698,2]
[332773408,1721512246526,-3384.03919494,0.00013698,2]
[332773409,1721512246536,-1035.9,0.00013698,2]
[332773410,1721512246547,-500.0,0.00013698,2]
[332773411,1721512246558,-4770.32,0.00013698,2]
[332773412,1721512246568,-687.76,0.00013698,2]
[332773413,1721512246578,-4770.32,0.00013698,2]
[332773414,1721512246588,-4770.32,0.00013698,2]
[332773415,1721512246598,-4770.32,0.00013698,2]
[332773416,1721512246608,-4770.32,0.00013698,2]
[332773417,1721512246619,-4770.32,0.00013698,2]
[332773418,1721512246629,-4770.32,0.00013698,2]
[332773419,1721512246640,-4770.32,0.00013698,2]
[332773420,1721512246693,-4770.32,0.00013698,2]
[332773421,1721512246704,-4770.32,0.00013698,2]
[332773422,1721512246713,-554.99193017,0.00013698,2]
[332773423,1721512246724,-4770.32,0.00013698,2]
[332773424,1721512246733,-4770.32,0.00013698,2]
[332773425,1721512246742,-500.0,0.00013698,2]
[332773426,1721512246752,-500.0,0.00013698,2]
[332773427,1721512246762,-4770.32,0.00013698,2]
[332773428,1721512246771,-4770.32,0.00013698,2]
[332773429,1721512246781,-4770.32,0.00013698,2]
[332773430,1721512246791,-4770.32,0.00013698,2]
[332773431,1721512246801,-1787.86,0.00013698,2]
[332773432,1721512246812,-4770.32,0.00013698,2]
[332773433,1721512246823,-539.19,0.00013698,2]
[332773434,1721512246833,-4770.32,0.00013698,2]
[332773435,1721512246843,-4770.32,0.00013698,2]
[332773436,1721512246854,-4770.32,0.00013698,2]
[332773437,1721512246863,-1336.62,0.00013698,2]
[332773438,1721512246872,-4770.32,0.00013698,2]
[332773439,1721512246882,-4770.32,0.00013698,2]
[332773440,1721512246891,-4770.32,0.00013698,2]
[332773441,1721512246901,-1360.19,0.00013698,2]
[332773442,1721512246911,-4770.37129281,0.00013698,2]
[332773443,1721512246921,-500.0,0.00013698,2]
[332773444,1721512246931,-484.1569262,0.00013698,2]
[332773445,1721512246941,-635.03105591,0.00013698,2]
[332773446,1721512246950,-500.0,0.00013698,2]
[332773447,1721512246960,-500.0,0.00013698,2]
[332773448,1721512246969,-500.0,0.00013698,2]
[332773449,1721512246979,-500.0,0.00013698,2]
[332773450,1721512246988,-656.27,0.00013698,2]
[332773451,1721512246998,-502.57318082,0.00013698,2]
[332773452,1721512247007,-500.0,0.00013698,2]
[332773453,1721512247018,-500.0,0.00013698,2]
[332773454,1721512247027,-500.0,0.00013698,2]
[332773455,1721512247037,-500.0,0.00013698,2]
[332773456,1721512247047,-500.0,0.00013698,2]
[332773457,1721512247057,-500.0,0.00013698,2]
[332773458,1721512247068,-2796.12,0.00013698,2]
[332773459,1721512247078,-500.0,0.00013698,2]
[332773460,1721512247088,-1695.529339,0.00013699,2]
[332773461,1721512247098,-2368.1920592,0.00013699,2]
[332773462,1721512247108,-3000.0,0.00013699,2]
[332773463,1721512247118,-206.5817573,0.00013699,2]
[332773464,1721512247127,-206.5817573,0.00013699,2]
[332773465,1721512247137,-500.0,0.00013809,2]
[332773466,1721512247146,-270.43895219,0.00013809,2]
[332773467,1721512247156,-153.9016,0.00013942,2]
[332773468,1721512247165,-3967.81905053,0.00013958,2]
[332773469,1721512247175,-558.84,0.00013961,2]
[332773470,1721512247184,-558.84,0.00013961,2]
[332773471,1721512247194,-558.84,0.00013961,2]
[332773472,1721512247203,-558.84,0.00013961,2]
[332773473,1721512247212,-558.84,0.00013961,2]
[332773474,1721512247222,-558.84,0.00013961,2]
[332773475,1721512247231,-558.84,0.00013961,2]
[332773476,1721512247240,-558.84,0.00013961,2]
[332773477,1721512247251,-558.84,0.00013961,2]
[332773478,1721512247260,-558.94640636,0.00013961,2]
[332773479,1721512247269,-500.0,0.0001397,2]
[332773480,1721512247279,-500.0,0.00013971,2]
[332773481,1721512247288,-500.0,0.00013971,2]
[332773482,1721512247297,-500.0,0.00013971,2]
[332773483,1721512247308,-500.0,0.00013971,2]
[332773484,1721512247318,-500.0,0.00013971,2]
[332773485,1721512247331,-500.0,0.00013971,2]
[332773486,1721512247341,-500.0,0.00013971,2]
[332773487,1721512247351,-500.0,0.00013971,2]
[332773488,1721512247361,-455.75116135,0.00013971,2]
[332773489,1721512247371,-500.0,0.00013972,2]
[332773490,1721512247380,-500.0,0.00013972,2]
[332773491,1721512247390,-500.0,0.00013972,2]
[332773492,1721512247400,-500.0,0.00013972,2]
[332773493,1721512247410,-170.43129503,0.00013972,2]
[332773494,1721512247419,-500.0,0.00013972,2]
[332773495,1721512247429,-500.0,0.00013972,2]
[332773496,1721512247438,-500.0,0.00013972,2]
[332773497,1721512247448,-500.0,0.00013972,2]
[332773498,1721512247458,-500.0,0.00013972,2]
[332773499,1721512247467,-500.0,0.00013972,2]
[332773500,1721512247477,-500.0,0.00013972,2]
[332773501,1721512247487,-500.0,0.00013972,2]
[332773502,1721512247496,-500.0,0.00013972,2]
[332773503,1721512247507,-500.0,0.00013972,2]
[332773504,1721512247516,-500.0,0.00013972,2]
[332773505,1721512247526,-289.40371987,0.00013972,2]
[332773506,1721512247537,-500.0,0.00013972,2]
[332773507,1721512247546,-500.0,0.00013972,2]
[332773508,1721512247556,-600.58,0.00013972,2]
[332773509,1721512247568,-525.96507878,0.00013972,2]
[332773510,1721512247577,-500.0,0.00013972,2]
[332773511,1721512247587,-500.0,0.00013972,2]
[332773512,1721512247598,-500.0,0.00013972,2]
[332773513,1721512247608,-500.0,0.00013972,2]
[332773514,1721512247618,-500.0,0.00013972,2]
[332773515,1721512247627,-500.0,0.00013972,2]
[332773516,1721512247637,-500.0,0.00013972,2]
[332773517,1721512247647,-500.0,0.00013972,2]
[332773518,1721512247656,-1083.49,0.00013972,2]
[332773519,1721512247666,-906.4,0.00013972,2]
[332773520,1721512247676,-500.0,0.00013972,2]
[332773521,1721512247686,-500.0,0.00013972,2]
[332773522,1721512247695,-500.0,0.00013972,2]
[332773523,1721512247705,-543.77,0.00013972,2]
[332773524,1721512247715,-545.46,0.00013972,2]
[332773525,1721512247724,-500.0,0.00013972,2]
[332773526,1721512247734,-500.0,0.00013972,2]
[332773527,1721512247743,-500.0,0.00013972,2]
[332773528,1721512247752,-500.0,0.00013972,2]
[332773529,1721512247762,-500.0,0.00013972,2]
[332773530,1721512247771,-500.0,0.00013972,2]
[332773531,1721512247781,-500.0,0.00013972,2]
[332773532,1721512247791,-500.0,0.00013972,2]
[332773533,1721512247800,-506.63376774,0.00013972,2]
[332773534,1721512247810,-500.0,0.00013972,2]
[332773535,1721512247820,-500.0,0.00013972,2]
[332773536,1721512247830,-500.0,0.00013972,2]
[332773537,1721512247839,-500.0,0.00013972,2]
[332773538,1721512247848,-500.0,0.00013972,2]
[332773539,1721512247857,-635.51,0.00013972,2]
[332773540,1721512247867,-500.0,0.00013972,2]
[332773541,1721512247877,-500.0,0.00013972,2]
[332773542,1721512247887,-500.0,0.00013972,2]
[332773543,1721512247897,-157.78037707,0.00013972,2]
[332773544,1721512247907,-681.01,0.00013972,2]
[332773545,1721512247917,-500.0,0.00013972,2]
[332773546,1721512247926,-516.51303496,0.00013972,2]
[332773547,1721512247936,-500.0,0.00013972,2]
[332773548,1721512247946,-500.0,0.00013972,2]
[332773549,1721512247956,-500.0,0.00013972,2]
[332773550,1721512247965,-500.0,0.00013972,2]
[332773551,1721512247975,-500.0,0.00013972,2]
[332773552,1721512247984,-771.95,0.00013972,2]
[332773553,1721512247994,-839.66,0.00013972,2]
[332773554,1721512248003,-601.67470916,0.00013972,2]
[332773555,1721512248013,-500.0,0.00013972,2]
[332773556,1721512248023,-2172.77,0.00013972,2]
[332773557,1721512248032,-500.0,0.00013972,2]
[332773558,1721512248042,-500.0,0.00013972,2]
[332773559,1721512248052,-500.0,0.00013972,2]
[332773560,1721512248061,-500.0,0.00013972,2]
[332773561,1721512248071,-500.0,0.00013972,2]
[332773562,1721512248081,-507.40824382,0.00013972,2]
[332773563,1721512248090,-692.29,0.00013972,2]
[332773564,1721512248101,-500.0,0.00013972,2]
[332773565,1721512248110,-500.0,0.00013972,2]
[332773566,1721512248120,-500.0,0.00013972,2]
[332773567,1721512248130,-500.0,0.00013972,2]
[332773568,1721512248140,-500.0,0.00013972,2]
[332773569,1721512248150,-500.0,0.00013972,2]
[332773570,1721512248160,-500.0,0.00013972,2]
[332773571,1721512248169,-500.0,0.00013972,2]
[332773572,1721512248179,-520.8514786,0.00013972,2]
[332773573,1721512248188,-499.99859316,0.00013972,2]
[332773574,1721512248199,-500.0,0.00013972,2]
[332773575,1721512248209,-500.0,0.00013972,2]
[332773576,1721512248218,-500.0,0.00013972,2]
[332773577,1721512248227,-500.0,0.00013972,2]
[332773578,1721512248237,-500.0,0.00013972,2]
[332773579,1721512248247,-500.0,0.00013972,2]
[332773580,1721512248256,-500.0,0.00013972,2]
[332773581,1721512248266,-500.0,0.00013972,2]
[332773582,1721512248275,-500.0,0.00013972,2]
[332773583,1721512248284,-500.0,0.00013972,2]
[332773584,1721512248294,-747.91,0.00013972,2]
[332773585,1721512248303,-500.0,0.00013972,2]
[332773586,1721512248313,-1395.64,0.00013972,2]
[332773587,1721512248325,-500.0,0.00013972,2]
[332773588,1721512248335,-500.0,0.00013972,2]
[332773589,1721512248347,-500.0,0.00013972,2]
[332773590,1721512248356,-500.0,0.00013972,2]
[332773591,1721512248367,-500.0,0.00013972,2]
[332773592,1721512248376,-500.0,0.00013972,2]
[332773593,1721512248385,-2043.81,0.00013972,2]
[332773594,1721512248396,-2502.56,0.00013972,2]
[332773595,1721512248406,-666.37,0.00013972,2]
[332773596,1721512248416,-520.36,0.00013972,2]
[332773597,1721512248426,-500.0,0.00013972,2]
[332773598,1721512248436,-716.3,0.00013972,2]
[332773599,1721512248447,-503.24791271,0.00013972,2]
[332773600,1721512248456,-500.0,0.00013972,2]
[332773601,1721512248466,-500.0,0.00013972,2]
[332773602,1721512248476,-504.01346212,0.00013972,2]
[332773603,1721512248486,-803.79,0.00013972,2]
[332773604,1721512248496,-1030.75,0.00013972,2]
[332773605,1721512248505,-500.0,0.00013972,2]
[332773606,1721512248514,-500.0,0.00013972,2]
[332773607,1721512248523,-549.67,0.00013972,2]
[332773608,1721512248533,-536.17445901,0.00013972,2]
[332773609,1721512248543,-500.0,0.00013972,2]
[332773610,1721512248552,-500.0,0.00013972,2]
[332773611,1721512248562,-500.0,0.00013972,2]
[332773612,1721512248572,-500.0,0.00013972,2]
[332773613,1721512248582,-657.3,0.00013972,2]
[332773614,1721512248591,-1833.88,0.00013972,2]
[332773615,1721512248601,-500.0,0.00013972,2]
[332773616,1721512248611,-500.0,0.00013972,2]
[332773617,1721512248621,-500.0,0.00013972,2]
[332773618,1721512248630,-694.15,0.00013972,2]
[332773619,1721512248640,-995.11,0.00013972,2]
[332773620,1721512248650,-500.0,0.00013972,2]
[332773621,1721512248660,-508.7950236,0.00013972,2]
[332773622,1721512248671,-500.0,0.00013972,2]
[332773623,1721512248681,-932.46,0.00013972,2]
[332773624,1721512248691,-500.0,0.00013972,2]
[332773625,1721512248701,-500.0,0.00013972,2]
[332773626,1721512248711,-604.16,0.00013972,2]
[332773627,1721512248720,-580.55,0.00013972,2]
[332773628,1721512248730,-500.0,0.00013972,2]
[332773629,1721512248740,-500.0,0.00013972,2]
[332773630,1721512248751,-500.0,0.00013972,2]
[332773631,1721512248761,-500.0,0.00013972,2]
[332773632,1721512248770,-3660.2,0.00013972,2]
[332773633,1721512248780,-500.0,0.00013972,2]
[332773634,1721512248790,-1301.1,0.00013972,2]
[332773635,1721512248800,-500.0,0.00013972,2]
[332773636,1721512248810,-500.0,0.00013972,2]
[332773637,1721512248825,-500.0,0.00013972,2]
[332773638,1721512248834,-1157.49,0.00013972,2]
[332773639,1721512248844,-500.0,0.00013972,2]
[332773640,1721512248853,-500.0,0.00013972,2]
[332773641,1721512248863,-500.0,0.00013972,2]
[332773642,1721512248873,-736.76,0.00013972,2]
[332773643,1721512248883,-538.57,0.00013972,2]
[332773644,1721512248893,-500.0,0.00013972,2]
[332773645,1721512248902,-1178.25,0.00013972,2]
[332773646,1721512248912,-500.0,0.00013972,2]
[332773647,1721512248922,-500.0,0.00013972,2]
[332773648,1721512248932,-642.89,0.00013972,2]
[332773649,1721512248942,-597.26,0.00013972,2]
[332773650,1721512248953,-504.00214773,0.00013972,2]
[332773651,1721512248965,-500.0,0.00013972,2]
[332773652,1721512248976,-512.82091932,0.00013972,2]
[332773653,1721512248987,-500.0,0.00013972,2]
[332773654,1721512248998,-500.0,0.00013972,2]
[332773655,1721512249008,-502.36816493,0.00013972,2]